bitfinex/quotes_ETHUSD_20260102
["timestamp","ask_amount","ask_price","bid_price","bid_amount"]
[1767364761090,6.59403668,3052.0,3050.0,2.67966215]
[1767364761385,6.10122719,3052.0,3050.0,2.67966215]
[1767364761586,9.37819662,3051.8,3050.1,0.859]
[1767364761787,0.04096077,3051.7,3050.2,0.859]
[1767364762018,0.04096077,3051.7,3049.6,3.27911225]
[1767364762223,2.82468722,3051.7,3049.3,3.03336227]
[1767364762532,2.82468722,3051.2,3049.4,0.859]
[1767364762727,2.82468722,3051.0,3049.5,0.859]
[1767364763016,2.82468722,3051.0,3048.5,2.68125036]
[1767364763017,2.86565739,3051.0,3049.6,0.859]
[1767364763223,2.82468722,3051.0,3048.5,2.68125036]
[1767364763430,2.82468722,3050.4,3048.5,2.68125036]
[1767364763620,2.82468722,3050.4,3048.1,3.28072556]
[1767364763621,2.82468722,3050.0,3048.6,0.859]
[1767364763922,2.82468722,3050.0,3048.7,0.859]
[1767364764124,2.91980973,3049.8,3047.0,4.224861]
[1767364764291,2.91980973,3049.8,3047.1,3.28179758]
[1767364764292,2.82468722,3049.4,3047.1,3.28179758]
[1767364764619,2.82468722,3049.4,3046.8,0.001]
[1767364764620,2.82468722,3048.8,3046.8,0.001]
[1767364764832,2.82468722,3048.6,3046.9,0.859]
[1767364765025,2.82468722,3048.6,3046.8,0.001]
[1767364765227,2.82468722,3048.6,3046.9,0.859]
[1767364765803,9.38512782,3048.6,3046.9,3.2819878]
[1767364766003,6.10490752,3048.6,3047.0,0.859]
[1767364766198,6.10490752,3048.6,3046.8,0.001]
[1767364766199,2.84717552,3048.5,3046.8,0.001]
[1767364766423,2.84717552,3048.5,3046.9,0.859]
[1767364767032,2.84717552,3048.5,3046.9,4.14098824]
[1767364767231,2.84717552,3048.5,3046.9,7.42301259]
[1767364767438,2.84717552,3049.4,3047.0,4.361504]
[1767364767642,3.27954873,3049.2,3047.3,6.56318708]
[1767364767844,3.27954873,3049.2,3047.4,2.69370337]
[1767364768000,0.0409957,3049.1,3047.4,2.69370337]
[1767364768205,2.84717552,3049.1,3047.5,0.859]
[1767364769106,9.4050133,3049.8,3047.8,9.339346]
[1767364769311,2.84717552,3049.6,3047.9,2.06245698]
[1767364769625,2.84717552,3049.6,3048.0,0.86]
[1767364769809,2.84717552,3049.4,3048.1,0.86]
[1767364770010,2.84717552,3049.4,3047.3,4.345043]
[1767364770235,2.84717552,3049.4,3047.1,2.06967842]
[1767364770236,2.84717552,3049.2,3047.4,0.86]
[1767364770561,4.21955283,3049.7,3047.6,2.69672231]
[1767364770711,6.59864242,3049.9,3047.7,4.64867713]
[1767364771048,2.84717552,3049.8,3048.2,5.63024324]
[1767364771211,2.84717552,3049.8,3047.9,2.69817038]
[1767364771411,2.84717552,3049.8,3048.0,3.886222]
[1767364771810,2.84717552,3049.8,3048.1,9.84219675]
[1767364772032,0.002,3049.2,3048.2,0.98421968]
[1767364772205,0.002,3049.2,3048.3,0.86]
[1767364772815,2.84917552,3049.2,3047.5,3.28132447]
[1767364773010,2.84917552,3049.2,3047.6,0.86]
[1767364773426,2.84917552,3049.2,3046.8,0.001]
[1767364773609,2.84917552,3049.2,3047.3,0.86]
[1767364773815,2.84717552,3049.0,3047.4,6.5629717]
[1767364774038,6.12696666,3049.0,3047.4,6.5629717]
[1767364774344,0.002,3049.2,3047.6,2.70244766]
[1767364774935,3.28156496,3049.2,3047.7,0.86]
[1767364775343,6.56112992,3049.2,3047.7,0.86]
[1767364775644,7.21724291,3049.2,3047.8,0.35624477]
[1767364775853,2.84717552,3049.1,3047.9,0.86]
[1767364776639,0.002,3049.2,3047.9,0.86]
[1767364777014,0.002,3049.2,3048.0,10.53615138]
[1767364777223,0.002,3049.2,3048.1,1.13961514]
[1767364777417,6.1254341,3050.4,3048.4,17.07904]
[1767364777727,2.84717552,3050.3,3048.4,2.675024]
[1767364778062,2.84717552,3050.3,3048.2,5.54656638]
[1767364778063,2.84717552,3050.1,3048.2,0.86]
[1767364778264,2.88815778,3050.1,3047.7,7.5491543]
[1767364778415,2.88815778,3050.1,3048.1,3.28069077]
[1767364778611,0.09512251,3049.7,3048.0,0.86]
[1767364778843,2.94229803,3049.5,3048.0,0.86]
[1767364779046,2.94229803,3049.3,3047.1,3.28176406]
[1767364779242,2.94229803,3049.1,3047.2,0.86]
[1767364779554,2.84717552,3048.9,3047.2,0.86]
[1767364779853,2.84717552,3048.5,3047.2,0.86]
[1767364780054,2.84717552,3048.3,3047.2,0.86]
[1767364780276,2.84717552,3048.3,3046.8,0.001]
[1767364780766,3.70717552,3048.3,3046.8,0.001]
[1767364781056,2.84717552,3048.3,3046.8,0.861]
[1767364781257,2.84717552,3049.0,3047.3,5.01476354]
[1767364781550,0.002,3049.2,3047.6,5.276466]
[1767364781721,0.002,3049.2,3047.6,3.223008]
[1767364781922,0.002,3049.2,3047.5,2.84436754]
[1767364781923,2.84917552,3049.2,3047.7,4.14116284]
[1767364782116,2.84917552,3049.2,3047.7,7.42232568]
[1767364782351,0.002,3049.2,3047.9,2.84436754]
[1767364782655,0.002,3049.2,3048.1,2.84436754]
[1767364782822,2.84597552,3049.8,3048.1,2.84436754]
[1767364783016,2.84597552,3049.8,3048.3,4.534622]
[1767364783336,2.84717552,3049.7,3048.4,0.86]
[1767364783538,0.04098898,3049.6,3048.4,0.86]
[1767364783845,3.79177871,3049.6,3048.4,4.14038977]
[1767364784048,6.12631072,3049.6,3048.4,0.86]
[1767364784240,0.04099032,3049.5,3048.4,0.86]
[1767364784417,2.84717552,3049.6,3048.4,7.42076829]
[1767364784820,2.84717552,3049.6,3048.4,3.28040381]
[1767364785041,2.84717552,3049.6,3048.0,3.28082492]
[1767364785341,2.84717552,3049.4,3048.0,3.28077559]
[1767364785539,4.68856638,3050.5,3047.8,2.84436754]
[1767364785753,4.68856638,3050.5,3048.5,4.68656638]
[1767364785754,2.84717552,3050.3,3048.5,4.68656638]
[1767364785939,0.002,3050.5,3049.1,2.84436754]
[1767364786128,0.002,3050.5,3049.3,2.84436754]
[1767364786352,0.002,3050.5,3049.4,0.37043675]
[1767364786553,0.002,3050.5,3049.2,0.86]
[1767364786931,3.27825858,3050.4,3048.6,3.28019418]
[1767364787133,3.70717552,3050.3,3048.7,0.86]
[1767364787365,0.002,3050.5,3048.9,2.84436754]
[1767364787527,0.002,3050.5,3049.0,4.20081445]
[1767364787729,0.002,3050.5,3049.2,7.53093392]
[1767364787963,0.002,3050.5,3049.4,6.55866726]
[1767364788176,0.002,3050.5,3049.4,3.27933363]
[1767364788468,2.84917552,3050.5,3049.1,3.27965409]
[1767364788663,1.23091755,3050.4,3049.3,3.27942741]
[1767364788954,0.002,3050.3,3049.2,3.27952384]
[1767364789257,2.84917552,3050.3,3048.9,0.859]
[1767364789443,3.70917552,3050.3,3049.1,3.27962076]
[1767364789751,2.84717552,3050.2,3048.9,0.859]
[1767364790060,2.84717552,3049.9,3048.9,0.859]
[1767364790267,2.84717552,3049.8,3048.1,3.28062689]
[1767364790559,2.84717552,3049.6,3048.0,0.859]
[1767364790762,2.84717552,3049.6,3048.0,4.13981647]
[1767364790991,0.37091755,3050.1,3048.9,3.27984146]
[1767364791121,0.32180931,3050.0,3048.9,3.279848]
[1767364791527,0.32180931,3050.0,3048.8,0.859]
[1767364792050,3.16898483,3050.0,3048.8,4.13895826]
[1767364792251,2.84717552,3050.0,3048.8,7.41893726]
[1767364792454,0.862,3050.3,3048.8,7.41893726]
[1767364792659,0.002,3050.3,3048.8,10.2633048]
[1767364792959,2.84917552,3050.3,3048.8,10.2633048]
[1767364795162,0.002,3050.3,3048.9,2.84436754]
[1767364795375,0.002,3050.5,3049.3,2.84436754]
[1767364795576,0.002,3050.5,3049.4,0.859]
[1767364796068,0.002,3050.5,3049.4,7.41766726]
[1767364796448,0.002,3050.5,3049.4,4.13833363]
[1767364796837,0.002,3050.5,3049.4,7.41766726]
[1767364797064,0.002,3050.5,3049.5,0.42027119]
[1767364797269,0.002,3050.3,3049.5,0.42027119]
[1767364797468,3.2771122,3051.5,3049.5,0.42027119]
[1767364797469,2.83678493,3052.1,3050.0,7.73968624]
[1767364797649,2.83678493,3051.9,3050.1,0.859]
[1767364797844,2.83678493,3051.5,3050.2,0.85986862]
[1767364798033,2.83678493,3051.5,3050.1,0.859]
[1767364798238,2.83678493,3051.5,3049.0,1.35432838]
[1767364798239,2.83678493,3051.3,3049.0,1.35432838]
[1767364798447,2.83678493,3050.9,3048.8,0.001]
[1767364798662,2.93190744,3050.6,3048.8,0.001]
[1767364798840,2.83678493,3049.9,3047.6,3.05311986]
[1767364799037,0.09512251,3050.0,3047.5,0.001]
[1767364799038,2.83678493,3049.5,3047.5,0.001]
[1767364799246,0.86,3049.4,3047.5,0.001]
[1767364799447,0.86,3049.4,3046.8,0.001]
[1767364799448,2.83678493,3048.7,3046.8,0.001]
[1767364799648,2.83678493,3048.5,3046.8,0.001]
[1767364799850,0.29319074,3048.6,3046.9,3.05311986]
[1767364800066,2.83678493,3049.2,3047.2,4.68656638]
[1767364800266,2.83678493,3049.2,3047.3,0.859]
[1767364800776,2.83678493,3049.1,3047.3,3.91211986]
[1767364801072,2.83678493,3049.1,3047.4,0.85986862]
[1767364801274,2.83678493,3049.1,3047.1,0.859]
[1767364801574,2.83678493,3049.0,3047.1,0.859]
[1767364801942,2.83678493,3049.0,3047.2,6.56340246]
[1767364802138,2.83678493,3049.0,3047.2,17.58478993]
[1767364802339,2.83678493,3048.8,3047.3,1.84437899]
[1767364802545,2.83678493,3048.8,3047.2,14.53167007]
[1767364802785,2.83678493,3049.9,3047.8,3.05311986]
[1767364802987,2.83678493,3049.9,3048.2,4.68656638]
[1767364803574,3.27784479,3050.8,3048.0,3.05311986]
[1767364803575,6.55458328,3051.3,3048.7,4.68656638]
[1767364803740,2.83678493,3051.1,3048.8,4.3807765]
[1767364803944,2.83678493,3050.7,3048.9,7.41874284]
[1767364804346,3.27782876,3050.8,3048.8,0.46865664]
[1767364804347,2.83678493,3050.5,3048.8,0.46865664]
[1767364804577,9.83348628,3050.8,3047.7,7.96772588]
[1767364804578,2.83678493,3050.3,3047.7,7.73968624]
[1767364804743,2.83678493,3050.1,3047.7,7.73968624]
[1767364805076,2.83678493,3049.9,3048.3,3.28045009]
[1767364805263,2.83678493,3049.9,3047.8,0.859]
[1767364805463,2.83678493,3049.9,3048.5,3.28022941]
[1767364805658,2.83678493,3049.7,3047.7,3.05311986]
[1767364805862,2.83678493,3049.5,3048.0,6.56167978]
[1767364806176,0.28367849,3049.8,3048.0,9.84251967]
[1767364806381,0.002,3050.1,3048.5,3.05311986]
[1767364806585,0.002,3050.1,3048.7,3.384565]
[1767364806788,0.002,3050.1,3048.8,0.4243565]
[1767364807076,0.002,3050.1,3048.8,0.859]
[1767364807389,0.002,3050.1,3048.4,4.68656638]
[1767364807545,0.002,3050.1,3048.9,0.859]
[1767364807753,0.002,3050.1,3049.0,3.70598]
[1767364807993,2.83678493,3050.9,3049.1,9.83896887]
[1767364808147,2.83878493,3051.6,3049.9,4.68656638]
[1767364808347,2.83878493,3051.6,3049.2,27.85698343]
[1767364808348,2.83678493,3051.3,3049.4,4.68656638]
[1767364808548,2.83678493,3051.3,3049.2,1.28920887]
[1767364808750,2.83678493,3051.3,3049.3,0.859]
[1767364809055,2.83678493,3051.3,3049.2,1.28920887]
[1767364809056,2.83678493,3051.1,3049.4,0.859]
[1767364809254,2.83678493,3050.9,3049.4,0.859]
[1767364809782,0.002,3051.4,3049.6,4.68656638]
[1767364809981,0.002,3051.4,3049.7,9.83703315]
[1767364810184,0.002,3051.4,3050.1,4.68656638]
[1767364810353,0.002,3051.4,3050.2,0.859]
[1767364810564,0.002,3051.4,3050.3,0.55455664]
[1767364810757,2.83678493,3052.2,3050.7,3.05311986]
[1767364811283,2.83678493,3052.1,3050.6,0.859]
[1767364811785,2.87774167,3052.0,3050.3,1.41355664]
[1767364811991,6.55329466,3051.9,3050.3,0.859]
[1767364812157,2.93190744,3051.8,3049.5,3.05311986]
[1767364812362,2.87774436,3051.8,3049.8,3.27886133]
[1767364812558,2.83678493,3051.8,3049.6,0.859]
[1767364812770,2.83678493,3051.6,3049.7,6.332063]
[1767364813053,2.83678493,3051.4,3049.3,0.859]
[1767364813252,2.83678493,3051.2,3049.3,0.859]
[1767364813458,2.83678493,3051.2,3049.3,4.13837393]
[1767364813655,2.83678493,3051.0,3049.3,0.859]
[1767364813879,3.69578493,3051.0,3049.3,0.859]
[1767364814100,3.20636342,3050.9,3049.4,6.55866726]
[1767364814413,3.20636342,3050.9,3049.4,9.83800089]
[1767364814414,2.83678493,3050.9,3049.4,9.83800089]
[1767364814571,2.83678493,3051.5,3049.7,3.05311986]
[1767364814782,2.83678493,3051.5,3049.4,13.11733452]
[1767364814783,2.83678493,3051.3,3049.4,3.27933363]
[1767364814977,0.859,3051.2,3049.6,0.859]
[1767364815180,3.69578493,3051.3,3049.6,8.59868624]
[1767364815389,0.002,3051.2,3049.7,0.85986862]
[1767364816012,3.27939905,3051.2,3049.8,3.27890353]
[1767364816162,2.83678493,3051.1,3049.8,3.27890353]
[1767364816857,2.83678493,3051.1,3049.8,9.83671059]
[1767364817062,0.002,3051.2,3049.8,12.88983045]
[1767364817319,0.859,3051.1,3049.9,1.46086991]
[1767364817469,0.859,3051.1,3049.3,0.859]
[1767364817470,2.8777551,3051.0,3049.3,0.859]
[1767364817787,2.83678493,3050.8,3049.3,0.859]
[1767364817995,2.83678493,3050.6,3048.6,3.05311986]
[1767364818162,2.83678493,3050.4,3048.7,0.859]
[1767364818362,2.83678493,3050.4,3048.8,6.55994708]
[1767364818558,3.20636342,3050.4,3048.9,1.06990009]
[1767364818759,2.83678493,3050.2,3048.9,1.06990009]
[1767364818967,2.83678493,3050.2,3048.7,0.859]
[1767364819181,2.83678493,3050.2,3048.7,7.41915421]
[1767364819386,2.83678493,3050.2,3048.7,4.13906762]
[1767364819899,2.83678493,3050.2,3048.7,0.859]
[1767364820191,2.83678493,3050.0,3048.7,4.13907451]
[1767364820410,3.44832153,3050.0,3048.7,1.60092633]
[1767364820574,3.44832153,3050.0,3048.7,3.28007988]
[1767364820761,2.83678493,3050.6,3048.9,7.73968624]
[1767364820961,2.83678493,3050.6,3049.0,0.859]
[1767364821172,2.83678493,3050.6,3049.1,3.05311986]
[1767364821405,2.83678493,3050.5,3048.7,3.27998565]
[1767364821592,2.83678493,3050.3,3048.7,3.27998565]
[1767364821888,2.83678493,3050.1,3048.6,0.859]
[1767364822086,2.83678493,3050.1,3048.7,6.56016118]
[1767364822305,3.56187083,3050.5,3048.8,3.05311986]
[1767364822488,2.83678493,3050.3,3048.9,0.9613281]
[1767364822878,2.83678493,3051.1,3049.1,3.05311986]
[1767364823084,2.8777551,3051.0,3049.2,0.859]
[1767364823388,2.83678493,3050.9,3049.2,0.859]
[1767364823792,0.859,3051.0,3049.2,0.859]
[1767364823793,2.83678493,3050.7,3049.2,0.859]
[1767364824010,2.83678493,3050.7,3049.3,3.44433185]
[1767364824208,2.83678493,3050.7,3049.4,6.55866726]
[1767364824413,2.83678493,3050.7,3049.4,9.83800089]
[1767364824614,0.002,3050.6,3049.4,9.83800089]
[1767364825281,2.83878493,3050.6,3049.4,3.27933363]
[1767364825481,2.83678493,3050.4,3049.3,3.27940225]
[1767364825704,2.83678493,3050.3,3049.2,0.859]
[1767364825905,2.83678493,3050.3,3048.7,3.05311986]
[1767364826106,6.55694708,3050.2,3048.1,9.38745311]
[1767364826286,0.28387849,3050.5,3048.2,0.859]
[1767364826287,3.0016666,3050.1,3048.2,0.859]
[1767364826493,3.0016666,3050.1,3048.6,3.01350386]
[1767364826699,2.83944259,3050.6,3048.8,3.01350386]
[1767364827006,3.69844259,3050.6,3048.8,3.01350386]
[1767364827386,2.83744259,3050.5,3048.8,3.01350386]
[1767364827614,2.83744259,3050.5,3048.9,0.859]
[1767364827826,2.83744259,3050.5,3049.0,0.38725039]
[1767364827988,0.002,3050.6,3049.2,20.67005686]
[1767364828187,0.002,3050.6,3049.4,6.55866726]
[1767364828425,2.83944259,3050.6,3049.4,3.27933363]
[1767364828644,0.002,3050.6,3049.4,12.85150475]
[1767364828845,0.002,3050.6,3049.5,1.28515048]
[1767364829046,0.002,3050.6,3049.6,0.859]
[1767364829750,0.002,3050.6,3049.5,1.28515048]
[1767364830122,2.83944259,3050.6,3049.5,4.5643644]
[1767364830444,2.83744259,3050.5,3049.4,0.859]
[1767364830765,2.83744259,3050.3,3048.8,0.859]
[1767364830975,2.87842216,3050.3,3048.8,0.859]
[1767364831247,2.87842216,3050.3,3048.8,4.13892753]
[1767364831550,2.87842216,3050.3,3049.0,3.27974733]
[1767364831847,2.83744259,3050.1,3048.0,0.001]
[1767364832067,2.83744259,3049.9,3048.0,0.001]
[1767364832234,2.9325651,3049.7,3048.0,0.001]
[1767364832549,2.83744259,3049.7,3047.9,3.28088194]
[1767364832747,2.83744259,3049.5,3047.9,6.56182947]
[1767364832967,2.83744259,3049.3,3047.9,3.28088194]
[1767364833146,2.83744259,3049.3,3047.3,4.14152339]
[1767364833147,2.83744259,3049.3,3047.3,0.001]
[1767364833469,2.83744259,3049.3,3047.5,3.28137729]
[1767364833628,2.83744259,3049.3,3047.7,3.28110265]
[1767364833815,0.09512251,3049.5,3047.3,0.001]
[1767364833816,2.83744259,3048.9,3047.3,0.001]
[1767364834320,2.83744259,3048.7,3047.3,0.001]
[1767364834862,2.83744259,3048.7,3046.8,6.5652423]
[1767364835034,2.83744259,3048.7,3046.8,3.28311023]
[1767364835562,0.09512251,3048.5,3046.8,0.001]
[1767364835766,2.83744259,3048.4,3046.8,0.001]
[1767364835922,2.83744259,3048.2,3046.8,0.001]
[1767364836241,2.83744259,3048.0,3046.8,0.001]
[1767364837052,2.83744259,3048.6,3046.8,3.01450386]
[1767364837363,2.83744259,3048.4,3046.8,3.01450386]
[1767364837725,2.83744259,3049.0,3047.0,3.01350386]
[1767364837921,2.83744259,3049.0,3046.9,0.859]
[1767364837922,2.83744259,3048.8,3047.1,3.40075425]
[1767364838457,2.83744259,3048.6,3047.1,3.66903845]
[1767364838828,2.83744259,3048.6,3047.1,6.95084738]
[1767364839149,0.7810274,3049.0,3047.1,6.95084738]
[1767364839150,2.83744259,3049.4,3047.4,3.01350386]
[1767364839350,2.83744259,3049.4,3046.8,0.001]
[1767364839351,2.83744259,3048.2,3046.8,0.001]
[1767364839534,2.83744259,3048.2,3047.0,3.28191645]
[1767364839718,2.83744259,3048.2,3046.8,0.001]
[1767364839927,2.83944259,3048.2,3046.8,0.001]
[1767364840445,2.83744259,3048.0,3046.9,0.859]
[1767364840774,3.7773333,3047.9,3046.9,0.859]
[1767364840926,3.7773333,3047.9,3046.4,3.01350386]
[1767364840927,2.83744259,3047.7,3046.3,0.859]
[1767364841131,2.83744259,3047.7,3045.9,6.29654462]
[1767364841332,2.83744259,3047.7,3046.1,0.859]
[1767364841534,2.83744259,3047.5,3045.5,0.001]
[1767364841729,2.83744259,3047.5,3045.5,3.28447127]
[1767364842065,2.83744259,3047.5,3045.7,0.86]
[1767364842246,2.83744259,3047.1,3045.5,0.001]
[1767364842763,0.09512251,3046.9,3045.5,0.001]
[1767364842962,2.83744259,3046.8,3045.5,0.001]
[1767364843137,3.12118685,3046.7,3045.5,0.861]
[1767364843330,3.12118685,3046.7,3045.4,0.001]
[1767364843968,2.83744259,3046.7,3045.4,6.56825427]
[1767364844131,10.26084505,3047.2,3045.4,6.56825427]
[1767364844336,2.83744259,3046.9,3045.4,3.01450386]
[1767364844630,2.83744259,3046.9,3045.5,0.86]
[1767364844837,2.83744259,3047.5,3045.6,3.01350386]
[1767364845152,2.83744259,3047.5,3045.8,3.01350386]
[1767364845462,2.83744259,3047.5,3045.9,3.87350386]
[1767364845667,6.12013227,3048.2,3046.0,3.01350386]
[1767364845969,2.83944259,3048.2,3046.2,3.01350386]
[1767364846133,2.83944259,3048.2,3046.4,3.01350386]
[1767364846462,2.83944259,3048.2,3046.8,3.01350386]
[1767364846650,0.04100915,3048.1,3046.8,3.01350386]
[1767364846984,2.83744259,3048.7,3047.0,3.01350386]
[1767364847149,7.01734773,3049.4,3047.2,3.01350386]
[1767364847460,7.01734773,3049.4,3047.4,3.01350386]
[1767364847663,2.83744259,3049.3,3047.5,0.86]
[1767364847843,0.002,3048.2,3047.4,3.01350386]
[1767364848033,0.002,3048.2,3047.5,1.16135039]
[1767364848232,2.83744259,3049.3,3047.5,1.16135039]
[1767364848464,0.90057151,3049.4,3047.7,3.01350386]
[1767364848691,2.83744259,3049.4,3047.7,3.01350386]
[1767364848963,2.83744259,3049.4,3047.8,0.86]
[1767364849164,2.83744259,3049.4,3047.6,6.562541]
[1767364849347,2.87843426,3049.4,3047.7,0.86]
[1767364849670,2.83744259,3049.4,3047.7,0.86]
[1767364849863,2.83744259,3049.2,3047.8,0.7422541]
[1767364850371,2.83744259,3049.0,3047.3,3.28157478]
[1767364850687,2.83744259,3049.0,3046.9,3.28195482]
[1767364850688,2.83744259,3048.8,3046.5,3.01350386]
[1767364850834,2.83744259,3048.6,3046.8,3.01350386]
[1767364851035,2.83744259,3048.4,3046.7,3.01350386]
[1767364851464,2.87844905,3048.3,3046.7,3.01350386]
[1767364851669,2.83744259,3048.1,3046.3,0.30135039]
[1767364851869,2.83744259,3047.9,3046.4,0.86]
[1767364852169,2.83744259,3048.1,3046.5,0.86]
[1767364852394,0.36974426,3048.0,3046.5,0.86]
[1767364852670,22.02759224,3049.1,3046.5,0.86]
[1767364852671,6.11748879,3048.8,3046.6,3.01350386]
[1767364852964,6.11748879,3048.8,3046.5,19.61910892]
[1767364852965,2.83744259,3048.8,3047.0,3.01350386]
[1767364853163,2.83744259,3048.8,3046.5,19.61910892]
[1767364853164,2.83744259,3048.8,3047.2,3.01350386]
[1767364854172,6.11749246,3048.8,3047.2,3.01350386]
[1767364854345,6.11752574,3048.8,3047.2,3.01350386]
[1767364854536,0.93974363,3048.7,3047.3,7.42318708]
[1767364854737,0.93974363,3048.7,3047.3,10.43669094]
[1767364854966,0.93974363,3048.7,3047.4,3.01350386]
[1767364855666,0.86,3049.1,3047.5,3.87350386]
[1767364855864,0.002,3048.4,3047.6,3.01350386]
[1767364856365,0.002,3048.4,3047.7,0.86]
[1767364856536,0.86,3049.1,3047.7,4.14112289]
[1767364856736,4.13966171,3049.1,3047.7,4.85658557]
[1767364856971,7.17176673,3049.1,3047.7,3.28112289]
[1767364857146,3.07310206,3049.0,3047.7,0.86]
[1767364857548,4.13966387,3049.1,3047.8,3.0351154]
[1767364858447,3.03210502,3048.8,3047.3,3.28148872]
[1767364858777,3.16822726,3048.8,3046.7,3.0351154]
[1767364858991,3.16822726,3048.8,3046.6,0.001]
[1767364858992,3.03210502,3048.3,3046.6,0.001]
[1767364859158,0.09512251,3048.4,3046.6,0.001]
[1767364859159,3.03210502,3048.1,3046.6,0.001]
[1767364859366,3.03210502,3048.0,3046.7,3.8951154]
[1767364859577,0.86,3048.2,3046.9,3.0351154]
[1767364859867,3.07311417,3048.1,3046.6,0.001]
[1767364860169,3.03210502,3047.9,3046.6,0.001]
[1767364860375,0.09512251,3048.8,3046.6,0.001]
[1767364860376,3.03210502,3048.6,3046.6,3.0361154]
[1767364860552,6.31232639,3048.6,3046.8,3.0351154]
[1767364860886,3.12722753,3048.5,3046.6,0.001]
[1767364861181,3.03210502,3048.0,3046.6,0.001]
[1767364861348,3.03210502,3047.8,3045.9,3.0351154]
[1767364861548,3.03210502,3047.6,3045.9,3.0351154]
[1767364861749,3.12722753,3047.4,3045.6,0.86]
[1767364861964,3.03210502,3046.9,3045.4,3.0361154]
[1767364862187,3.03210502,3046.7,3045.4,0.001]
[1767364862346,3.42131552,3046.6,3045.4,0.001]
[1767364862552,3.03210502,3046.4,3044.4,0.001]
[1767364862856,3.03210502,3046.2,3044.4,0.001]
[1767364863185,0.86,3046.3,3045.0,3.0351154]
[1767364863398,0.3892105,3046.6,3045.0,3.0351154]
[1767364863399,0.86,3046.6,3045.0,3.0351154]
[1767364863600,0.86,3046.6,3045.1,1.04634756]
[1767364863601,3.03210502,3046.5,3045.1,1.04634756]
[1767364863801,3.03210502,3046.5,3045.4,0.001]
[1767364864167,0.86,3046.4,3045.4,0.001]
[1767364864498,0.86,3046.4,3044.8,0.001]
[1767364864499,3.03210502,3046.1,3044.8,0.001]
[1767364865388,3.03210502,3046.1,3044.8,3.0361154]
[1767364865558,0.09512251,3046.6,3044.9,3.0351154]
[1767364865559,0.86,3046.6,3044.9,3.0351154]
[1767364865761,0.86,3046.6,3045.1,3.0351154]
[1767364865962,5.7244333,3046.5,3044.8,0.001]
[1767364866162,3.03210502,3046.4,3044.8,0.001]
[1767364866377,3.03210502,3046.4,3044.8,3.0361154]
[1767364866575,3.28255512,3046.5,3045.0,3.0351154]
[1767364866770,0.74249839,3046.5,3045.2,3.0351154]
[1767364867104,4.14240941,3046.6,3045.2,3.0351154]
[1767364867105,4.1423931,3046.6,3045.2,3.0351154]
[1767364867289,4.1423931,3046.6,3044.8,0.001]
[1767364867290,3.03210502,3046.5,3044.8,0.001]
[1767364867503,3.12722753,3046.5,3044.8,0.001]
[1767364867869,3.03210502,3046.2,3044.8,0.001]
[1767364868088,1.17272275,3046.1,3044.8,0.001]
[1767364868308,4.20482777,3046.1,3044.8,0.001]
[1767364868474,6.3151891,3046.0,3044.8,0.001]
[1767364868696,3.03210502,3046.6,3044.8,3.0361154]
[1767364868895,1.1632105,3046.5,3045.0,3.0351154]
[1767364869304,0.86,3046.5,3045.0,3.0351154]
[1767364869604,3.03210502,3047.1,3044.9,0.30361154]
[1767364869605,3.03210502,3047.1,3045.2,3.0351154]
[1767364869771,4.14183932,3047.1,3045.2,3.0351154]
[1767364870102,3.07312897,3047.0,3045.4,3.0351154]
[1767364870601,3.03210502,3046.8,3045.0,3.28397857]
[1767364870804,4.36095082,3046.7,3045.1,4.80617108]
[1767364871006,0.861,3046.6,3045.1,4.55738595]
[1767364871326,9.59421538,3047.8,3045.6,3.0351154]
[1767364871608,3.93411955,3047.7,3045.8,3.0351154]
[1767364871806,3.89310502,3047.7,3046.0,3.0351154]
[1767364871986,3.93411955,3047.7,3046.0,3.0351154]
[1767364872177,0.31272275,3047.9,3046.0,3.0351154]
[1767364872378,0.861,3047.8,3046.0,3.0351154]
[1767364872601,0.861,3047.8,3046.2,3.0351154]
[1767364872899,6.31280166,3048.2,3046.4,3.0351154]
[1767364873102,7.21480946,3048.2,3046.4,3.0351154]
[1767364873329,0.861,3048.2,3046.4,3.0351154]
[1767364873477,0.861,3048.2,3046.6,3.0351154]
[1767364874634,0.861,3048.2,3046.8,3.0351154]
[1767364874836,3.03210502,3048.1,3046.7,3.2822398]
[1767364875143,0.861,3048.2,3046.8,3.0351154]
[1767364875353,0.002,3048.4,3046.8,3.0351154]
[1767364875540,0.002,3048.4,3047.0,3.0351154]
[1767364875846,0.002,3048.4,3047.2,3.0351154]
[1767364876208,3.03210502,3048.3,3046.7,3.0351154]
[1767364876438,3.03210502,3048.1,3046.6,3.28234544]
[1767364876645,3.28083989,3048.0,3046.6,3.0351154]
[1767364876849,3.66750043,3047.9,3046.0,3.0351154]
[1767364877153,3.03210502,3047.7,3046.1,3.0351154]
[1767364877446,3.03210502,3047.6,3046.4,3.28251091]
[1767364877655,3.03210502,3047.6,3046.4,6.31766182]
[1767364877856,0.04101722,3047.5,3046.4,3.0351154]
[1767364878160,3.33941724,3047.4,3045.4,3.28355219]
[1767364878449,3.33941724,3047.4,3044.9,3.0351154]
[1767364878450,3.03210502,3047.7,3046.2,3.0351154]
[1767364878624,3.28137817,3047.5,3046.2,3.0351154]
[1767364878825,6.31341301,3047.6,3046.2,6.31788672]
[1767364879032,3.03210502,3047.6,3046.3,3.0351154]
[1767364879226,3.03210502,3047.6,3046.2,6.56554986]
[1767364879227,3.03210502,3047.6,3046.4,3.99518193]
[1767364879550,3.03210502,3047.5,3046.0,0.86]
[1767364879751,3.07312359,3047.4,3045.9,0.86]
[1767364879950,3.89210502,3047.3,3046.0,3.28299029]
[1767364880149,3.03210502,3047.2,3045.9,4.14308111]
[1767364880316,3.03210502,3047.2,3045.8,3.28316568]
[1767364880521,0.86,3047.3,3045.7,0.86]
[1767364880522,3.46233813,3047.1,3045.7,0.86]
[1767364880722,3.03210502,3046.9,3045.7,0.86]
[1767364880933,3.03210502,3046.9,3045.7,7.42658986]
[1767364881135,3.03210502,3047.0,3045.8,3.0351154]
[1767364881452,3.6710252,3047.1,3045.8,3.0351154]
[1767364881453,0.3892105,3047.1,3045.8,3.0351154]
[1767364881653,3.03210502,3047.2,3045.9,0.71783878]
[1767364881953,3.03210502,3047.2,3045.8,3.0351154]
[1767364882674,3.03210502,3047.2,3044.9,3.2841231]